[Event "Titled Tuesday Blitz April 05 Late 2022"]
[White "Keymer, Vincent"]
[Black "Sadhwani, Raunak"]
[WhiteFideId "12940690"]
[BlackFideId "35093487"]
[WhiteElo "2557"]
[BlackElo "2616"]
[Result "0-1"]
[Round "09"]
[TimeControl "180+1"]
[Date "2022.04.05"]
[WhiteClock "0:00:01"]
[BlackClock "0:00:23"]

1. Nf3 {[%clk 0:03:00]}  g6 {[%clk 0:03:00]} 2. c4 {[%clk 0:03:00]}  Bg7 {[%clk 0:03:01]} 3. Nc3 {[%clk 0:03:01]}  d6 {[%clk 0:03:01]} 4. d4 {[%clk 0:03:01]}  Nf6 {[%clk 0:02:59]} 5. g3 {[%clk 0:03:01]}  O-O {[%clk 0:02:58]} 6. Bg2 {[%clk 0:03:01]}  Nbd7 {[%clk 0:02:58]} 7. O-O {[%clk 0:03:01]}  e5 {[%clk 0:02:58]} 8. e4 {[%clk 0:03:02]}  Re8 {[%clk 0:02:54]} 9. h3 {[%clk 0:03:01]}  exd4 {[%clk 0:02:54]} 10. Nxd4 {[%clk 0:03:02]}  Nc5 {[%clk 0:02:54]} 11. Re1 {[%clk 0:03:02]}  a5 {[%clk 0:02:55]} 12. b3 {[%clk 0:03:03]}  Bd7 {[%clk 0:02:42]} 13. f3 {[%clk 0:03:03]}  h5 {[%clk 0:02:31]} 14. Be3 {[%clk 0:02:53]}  Ne6 {[%clk 0:02:28]} 15. Qd2 {[%clk 0:02:48]}  Nxd4 {[%clk 0:02:28]} 16. Bxd4 {[%clk 0:02:49]}  Bc6 {[%clk 0:02:29]} 17. Rad1 {[%clk 0:02:47]}  Nd7 {[%clk 0:02:29]} 18. Bxg7 {[%clk 0:02:42]}  Kxg7 {[%clk 0:02:30]} 19. Qd4+ {[%clk 0:02:42]}  Qf6 {[%clk 0:02:30]} 20. Qxf6+ {[%clk 0:02:38]}  Kxf6 {[%clk 0:02:31]} 21. Kf2 {[%clk 0:02:28]}  Nc5 {[%clk 0:02:29]} 22. h4 {[%clk 0:02:23]}  Re7 {[%clk 0:02:22]} 23. Re2 {[%clk 0:02:16]}  Rae8 {[%clk 0:02:22]} 24. Rb2 {[%clk 0:02:12]}  Kg7 {[%clk 0:02:17]} 25. a3 {[%clk 0:01:40]}  f5 {[%clk 0:02:17]} 26. b4 {[%clk 0:01:40]}  Na4 {[%clk 0:02:12]} 27. Nxa4 {[%clk 0:01:36]}  Bxa4 {[%clk 0:02:13]} 28. Rd4 {[%clk 0:01:28]}  axb4 {[%clk 0:02:10]} 29. axb4 {[%clk 0:01:27]}  fxe4 {[%clk 0:02:07]} 30. Rxe4 {[%clk 0:01:13]}  Rxe4 {[%clk 0:02:02]} 31. fxe4 {[%clk 0:01:14]}  b5 {[%clk 0:01:40]} 32. cxb5 {[%clk 0:00:52]}  Bxb5 {[%clk 0:01:41]} 33. Rc2 {[%clk 0:00:52]}  c6 {[%clk 0:01:39]} 34. Ke3 {[%clk 0:00:46]}  Kf6 {[%clk 0:01:33]} 35. Bf3 {[%clk 0:00:42]}  Ke5 {[%clk 0:00:56]} 36. Ra2 {[%clk 0:00:40]}  d5 {[%clk 0:00:39]} 37. exd5 {[%clk 0:00:34]}  cxd5 {[%clk 0:00:40]} 38. Ra5 {[%clk 0:00:33]}  Bc4 {[%clk 0:00:40]} 39. Rc5 {[%clk 0:00:27]}  Rb8 {[%clk 0:00:34]} 40. Rc6 {[%clk 0:00:17]}  Rxb4 {[%clk 0:00:28]} 41. Rxg6 {[%clk 0:00:17]}  d4+ {[%clk 0:00:29]} 42. Kf2 {[%clk 0:00:17]}  Rb2+ {[%clk 0:00:29]} 43. Kg1 {[%clk 0:00:15]}  d3 {[%clk 0:00:28]} 44. Bxh5 {[%clk 0:00:15]}  Bd5 {[%clk 0:00:28]} 45. Rg5+ {[%clk 0:00:13]}  Kd4 {[%clk 0:00:29]} 46. Kf1 {[%clk 0:00:12]}  Be4 {[%clk 0:00:25]} 47. Bg4 {[%clk 0:00:08]}  Ke3 {[%clk 0:00:23]} 48. Bd1 {[%clk 0:00:01]}  Rb1 {[%clk 0:00:23]} 0-1


[Site "https://www.chess.com"]

[Event "Titled Tuesday Blitz April 05 Late 2022"]
[White "Khripachenko, Alexander"]
[Black "Novikova, Galina"]
[WhiteFideId "54184975"]
[BlackFideId "4157095"]
[WhiteElo "2583"]
[BlackElo "2390"]
[Result "1-0"]
[Round "09"]
[TimeControl "180+1"]
[Date "2022.04.06"]
[WhiteClock "0:00:44"]
[BlackClock "0:00:07"]

1. e4 {[%clk 0:03:00]}  e6 {[%clk 0:02:59]} 2. d4 {[%clk 0:02:58]}  d5 {[%clk 0:03:00]} 3. Nd2 {[%clk 0:02:58]}  Nc6 {[%clk 0:03:00]} 4. Ngf3 {[%clk 0:02:58]}  g5 {[%clk 0:03:00]} 5. Bb5 {[%clk 0:02:55]}  Bd7 {[%clk 0:02:57]} 6. exd5 {[%clk 0:02:55]}  exd5 {[%clk 0:02:57]} 7. O-O {[%clk 0:02:55]}  Qf6 {[%clk 0:02:58]} 8. Re1+ {[%clk 0:02:55]}  Nge7 {[%clk 0:02:57]} 9. Ne5 {[%clk 0:02:52]}  O-O-O {[%clk 0:02:57]} 10. Nxd7 {[%clk 0:02:51]}  Rxd7 {[%clk 0:02:56]} 11. Nf3 {[%clk 0:02:51]}  h6 {[%clk 0:02:55]} 12. Ne5 {[%clk 0:02:47]}  Rd6 {[%clk 0:02:51]} 13. b3 {[%clk 0:02:39]}  Re6 {[%clk 0:02:46]} 14. Bb2 {[%clk 0:02:36]}  Bg7 {[%clk 0:02:26]} 15. Bd3 {[%clk 0:02:24]}  h5 {[%clk 0:02:02]} 16. Qf3 {[%clk 0:01:53]}  Qxf3 {[%clk 0:01:45]} 17. Nxf3 {[%clk 0:01:54]}  g4 {[%clk 0:01:37]} 18. Ng5 {[%clk 0:01:21]}  Rf6 {[%clk 0:01:15]} 19. Re2 {[%clk 0:01:07]}  Bh6 {[%clk 0:01:15]} 20. Nh7 {[%clk 0:01:05]}  Re6 {[%clk 0:01:08]} 21. Rxe6 {[%clk 0:01:04]}  fxe6 {[%clk 0:01:08]} 22. Re1 {[%clk 0:01:03]}  Nf5 {[%clk 0:00:36]} 23. Rxe6 {[%clk 0:00:58]}  Nfxd4 {[%clk 0:00:36]} 24. Rxh6 {[%clk 0:00:54]}  Re8 {[%clk 0:00:32]} 25. Kf1 {[%clk 0:00:49]}  Ne6 {[%clk 0:00:13]} 26. Bf5 {[%clk 0:00:46]}  Nd8 {[%clk 0:00:12]} 27. Ng5 {[%clk 0:00:46]}  Kd7 {[%clk 0:00:11]} 28. Bf6 {[%clk 0:00:43]}  Rf8 {[%clk 0:00:09]} 29. Nxe6 {[%clk 0:00:43]}  Nxe6 {[%clk 0:00:08]} 30. Bxe6+ {[%clk 0:00:44]}  Kxe6 {[%clk 0:00:07]} 31. Bg7+ {[%clk 0:00:44]} 1-0


[Site "https://www.chess.com"]

[Event "Titled Tuesday Blitz April 05 Late 2022"]
[White "Kollars, Dmitrij"]
[Black "Mikhailov, Viacheslav"]
[WhiteFideId "12909572"]
[BlackFideId "4187369"]
[WhiteElo "2584"]
[BlackElo "2381"]
[Result "1-0"]
[Round "09"]
[TimeControl "180+1"]
[Date "2022.04.05"]
[WhiteClock "0:01:09"]
[BlackClock "0:00:04"]

1. Nf3 {[%clk 0:03:00]}  Nf6 {[%clk 0:02:59]} 2. c4 {[%clk 0:02:58]}  g6 {[%clk 0:02:59]} 3. b3 {[%clk 0:02:58]}  Bg7 {[%clk 0:03:00]} 4. Bb2 {[%clk 0:02:58]}  O-O {[%clk 0:03:01]} 5. g3 {[%clk 0:02:57]}  d6 {[%clk 0:03:01]} 6. Bg2 {[%clk 0:02:56]}  c5 {[%clk 0:03:01]} 7. O-O {[%clk 0:02:55]}  Nc6 {[%clk 0:03:02]} 8. Nc3 {[%clk 0:02:54]}  Bf5 {[%clk 0:03:00]} 9. d4 {[%clk 0:02:51]}  cxd4 {[%clk 0:02:59]} 10. Nxd4 {[%clk 0:02:52]}  Bd7 {[%clk 0:02:59]} 11. Rc1 {[%clk 0:02:47]}  Qa5 {[%clk 0:02:58]} 12. h3 {[%clk 0:02:42]}  Rfd8 {[%clk 0:02:58]} 13. e3 {[%clk 0:02:40]}  Rac8 {[%clk 0:02:57]} 14. Qd2 {[%clk 0:02:39]}  a6 {[%clk 0:02:56]} 15. Rfd1 {[%clk 0:02:38]}  Nxd4 {[%clk 0:02:54]} 16. Qxd4 {[%clk 0:02:36]}  Bc6 {[%clk 0:02:47]} 17. Bxc6 {[%clk 0:02:29]}  bxc6 {[%clk 0:02:46]} 18. Na4 {[%clk 0:02:21]}  Qf5 {[%clk 0:02:39]} 19. g4 {[%clk 0:02:18]}  Qf3 {[%clk 0:02:35]} 20. g5 {[%clk 0:02:12]}  e5 {[%clk 0:01:45]} 21. Qh4 {[%clk 0:02:08]}  Ne4 {[%clk 0:01:36]} 22. Nc3 {[%clk 0:02:04]}  f5 {[%clk 0:01:15]} 23. Nxe4 {[%clk 0:01:41]}  fxe4 {[%clk 0:01:16]} 24. Qg4 {[%clk 0:01:42]}  Qxg4+ {[%clk 0:01:03]} 25. hxg4 {[%clk 0:01:42]}  Bf8 {[%clk 0:01:03]} 26. c5 {[%clk 0:01:40]}  dxc5 {[%clk 0:00:46]} 27. Bxe5 {[%clk 0:01:35]}  Rd5 {[%clk 0:00:46]} 28. Bf6 {[%clk 0:01:33]}  Kf7 {[%clk 0:00:46]} 29. Re1 {[%clk 0:01:30]}  h6 {[%clk 0:00:45]} 30. Rc4 {[%clk 0:01:26]}  hxg5 {[%clk 0:00:42]} 31. Bc3 {[%clk 0:01:18]}  Re8 {[%clk 0:00:24]} 32. Ra4 {[%clk 0:01:18]}  Rd3 {[%clk 0:00:23]} 33. Rc1 {[%clk 0:01:18]}  c4 {[%clk 0:00:10]} 34. Rxc4 {[%clk 0:01:17]}  c5 {[%clk 0:00:09]} 35. Kf1 {[%clk 0:01:14]}  Re6 {[%clk 0:00:05]} 36. Ke2 {[%clk 0:01:14]}  Rd8 {[%clk 0:00:04]} 37. Bb2 {[%clk 0:01:09]}  Be7 {[%clk 0:00:04]} 38. Ba3 {[%clk 0:01:09]} 1-0


[Site "https://www.chess.com"]

[Event "Titled Tuesday Blitz April 05 Late 2022"]
[White "Kosteniuk, Alexandra"]
[Black "Djordjevic, Dejan N"]
[WhiteFideId "4128125"]
[BlackFideId "913316"]
[WhiteElo "2469"]
[BlackElo "2262"]
[Result "1-0"]
[Round "09"]
[TimeControl "180+1"]
[Date "2022.04.05"]
[WhiteClock "0:00:40"]
[BlackClock "0:00:01"]

1. e4 {[%clk 0:03:00]}  c5 {[%clk 0:02:59]} 2. c3 {[%clk 0:03:00]}  d5 {[%clk 0:02:58]} 3. exd5 {[%clk 0:03:01]}  Qxd5 {[%clk 0:02:58]} 4. d4 {[%clk 0:03:02]}  Nc6 {[%clk 0:02:58]} 5. Nf3 {[%clk 0:03:02]}  Nf6 {[%clk 0:02:57]} 6. Be2 {[%clk 0:03:01]}  cxd4 {[%clk 0:02:57]} 7. cxd4 {[%clk 0:03:01]}  e6 {[%clk 0:02:57]} 8. Nc3 {[%clk 0:03:01]}  Qd8 {[%clk 0:02:56]} 9. O-O {[%clk 0:03:00]}  Be7 {[%clk 0:02:56]} 10. Bg5 {[%clk 0:02:54]}  O-O {[%clk 0:02:56]} 11. Bd3 {[%clk 0:02:54]}  b6 {[%clk 0:02:51]} 12. Rc1 {[%clk 0:02:52]}  Bb7 {[%clk 0:02:51]} 13. Bb1 {[%clk 0:02:49]}  Rc8 {[%clk 0:02:46]} 14. Re1 {[%clk 0:02:45]}  Nb4 {[%clk 0:02:43]} 15. Ne5 {[%clk 0:02:34]}  Nbd5 {[%clk 0:02:42]} 16. Qd3 {[%clk 0:02:30]}  g6 {[%clk 0:02:41]} 17. Bh6 {[%clk 0:02:26]}  Re8 {[%clk 0:02:39]} 18. Qh3 {[%clk 0:02:13]}  a6 {[%clk 0:02:34]} 19. Nxf7 {[%clk 0:02:11]}  Qd7 {[%clk 0:02:17]} 20. Ne5 {[%clk 0:02:10]}  Qd6 {[%clk 0:02:12]} 21. Bg5 {[%clk 0:02:01]}  Bf8 {[%clk 0:01:53]} 22. Nxd5 {[%clk 0:01:43]}  Nxd5 {[%clk 0:01:51]} 23. Nxg6 {[%clk 0:01:42]}  hxg6 {[%clk 0:01:50]} 24. Bxg6 {[%clk 0:01:42]}  Re7 {[%clk 0:01:04]} 25. Bxe7 {[%clk 0:01:36]}  Qxe7 {[%clk 0:01:03]} 26. Rxc8 {[%clk 0:01:34]}  Bxc8 {[%clk 0:01:02]} 27. Bf5 {[%clk 0:01:18]}  Nc7 {[%clk 0:00:46]} 28. d5 {[%clk 0:01:11]}  Nxd5 {[%clk 0:00:38]} 29. Bxe6+ {[%clk 0:01:10]}  Bxe6 {[%clk 0:00:37]} 30. Qxe6+ {[%clk 0:01:10]}  Qxe6 {[%clk 0:00:37]} 31. Rxe6 {[%clk 0:01:11]}  a5 {[%clk 0:00:30]} 32. g3 {[%clk 0:01:07]}  Bc5 {[%clk 0:00:29]} 33. Kg2 {[%clk 0:01:04]}  Kf7 {[%clk 0:00:28]} 34. Re4 {[%clk 0:01:04]}  Nb4 {[%clk 0:00:23]} 35. a4 {[%clk 0:00:58]}  Nd3 {[%clk 0:00:22]} 36. Re2 {[%clk 0:00:58]}  Kf6 {[%clk 0:00:20]} 37. h4 {[%clk 0:00:58]}  Kf5 {[%clk 0:00:20]} 38. f3 {[%clk 0:00:55]}  Ne5 {[%clk 0:00:18]} 39. g4+ {[%clk 0:00:53]}  Kf6 {[%clk 0:00:17]} 40. Kg3 {[%clk 0:00:49]}  Nc4 {[%clk 0:00:09]} 41. f4 {[%clk 0:00:46]}  Ne3 {[%clk 0:00:08]} 42. Kf3 {[%clk 0:00:44]}  Nc4 {[%clk 0:00:04]} 43. h5 {[%clk 0:00:41]}  Nd6 {[%clk 0:00:02]} 44. g5+ {[%clk 0:00:40]}  Kf7 {[%clk 0:00:01]} 45. Kg4 {[%clk 0:00:40]} 1-0


[Site "https://www.chess.com"]

[Event "Titled Tuesday Blitz April 05 Late 2022"]
[White "Kostiukov, Alexandr"]
[Black "Ardila, Oscar Humberto"]
[WhiteFideId "14108100"]
[BlackFideId "4404742"]
[WhiteElo "2202"]
[BlackElo "1983"]
[Result "1-0"]
[Round "09"]
[TimeControl "180+1"]
[Date "2022.04.06"]
[WhiteClock "0:01:20"]
[BlackClock "0:00:12"]

1. g3 {[%clk 0:03:00]}  Nf6 {[%clk 0:02:59]} 2. Bg2 {[%clk 0:03:01]}  g6 {[%clk 0:02:59]} 3. c4 {[%clk 0:03:01]}  Bg7 {[%clk 0:02:59]} 4. Nf3 {[%clk 0:03:01]}  O-O {[%clk 0:03:00]} 5. O-O {[%clk 0:03:02]}  d6 {[%clk 0:03:00]} 6. d4 {[%clk 0:03:03]}  Nbd7 {[%clk 0:03:00]} 7. Nc3 {[%clk 0:03:03]}  Re8 {[%clk 0:03:00]} 8. e4 {[%clk 0:03:03]}  e5 {[%clk 0:03:00]} 9. h3 {[%clk 0:03:03]}  exd4 {[%clk 0:02:59]} 10. Nxd4 {[%clk 0:03:04]}  Nc5 {[%clk 0:02:59]} 11. Re1 {[%clk 0:03:04]}  a5 {[%clk 0:02:59]} 12. Nb3 {[%clk 0:03:04]}  Nxb3 {[%clk 0:02:54]} 13. axb3 {[%clk 0:03:05]}  Bd7 {[%clk 0:02:52]} 14. Be3 {[%clk 0:02:56]}  Bc6 {[%clk 0:02:51]} 15. Qc2 {[%clk 0:02:55]}  b6 {[%clk 0:02:50]} 16. e5 {[%clk 0:02:40]}  Bxg2 {[%clk 0:02:40]} 17. exf6 {[%clk 0:02:40]}  Bxh3 {[%clk 0:02:08]} 18. fxg7 {[%clk 0:02:41]}  Bf5 {[%clk 0:02:05]} 19. Qd2 {[%clk 0:02:35]}  Qd7 {[%clk 0:01:43]} 20. Nd5 {[%clk 0:02:30]}  Re6 {[%clk 0:01:32]} 21. Bd4 {[%clk 0:02:15]}  Qd8 {[%clk 0:00:36]} 22. Qh6 {[%clk 0:01:41]}  f6 {[%clk 0:00:13]} 23. Rxe6 {[%clk 0:01:38]}  Bxe6 {[%clk 0:00:14]} 24. Nxf6+ {[%clk 0:01:36]}  Kf7 {[%clk 0:00:15]} 25. Qxh7 {[%clk 0:01:32]}  Qg8 {[%clk 0:00:11]} 26. Nxg8 {[%clk 0:01:30]}  Rxg8 {[%clk 0:00:11]} 27. Re1 {[%clk 0:01:23]}  Bf5 {[%clk 0:00:12]} 28. Re7+ {[%clk 0:01:20]} 1-0


[Site "https://www.chess.com"]

[Event "Titled Tuesday Blitz April 05 Late 2022"]
[White "Lashkin, Jegor"]
[Black "Demchenko, Anton"]
[WhiteFideId "13907808"]
[BlackFideId "4160258"]
[WhiteElo "2368"]
[BlackElo "2539"]
[Result "0-1"]
[Round "09"]
[TimeControl "180+1"]
[Date "2022.04.05"]
[WhiteClock "0:00:02"]
[BlackClock "0:01:20"]

1. d4 {[%clk 0:03:00]}  Nf6 {[%clk 0:02:59]} 2. c4 {[%clk 0:02:57]}  d6 {[%clk 0:03:00]} 3. Nf3 {[%clk 0:02:57]}  Nbd7 {[%clk 0:03:00]} 4. Nc3 {[%clk 0:02:57]}  e5 {[%clk 0:03:00]} 5. e4 {[%clk 0:02:57]}  c6 {[%clk 0:03:00]} 6. Be2 {[%clk 0:02:57]}  Be7 {[%clk 0:03:00]} 7. O-O {[%clk 0:02:57]}  Qc7 {[%clk 0:03:01]} 8. Be3 {[%clk 0:02:57]}  Nf8 {[%clk 0:03:01]} 9. b4 {[%clk 0:02:42]}  Ng6 {[%clk 0:03:00]} 10. Re1 {[%clk 0:02:24]}  O-O {[%clk 0:03:00]} 11. Bf1 {[%clk 0:02:20]}  Ng4 {[%clk 0:02:57]} 12. Bc1 {[%clk 0:02:18]}  exd4 {[%clk 0:02:57]} 13. Nxd4 {[%clk 0:02:17]}  d5 {[%clk 0:02:58]} 14. g3 {[%clk 0:02:15]}  Bxb4 {[%clk 0:02:57]} 15. Bb2 {[%clk 0:02:10]}  dxc4 {[%clk 0:02:55]} 16. Bxc4 {[%clk 0:02:05]}  Rd8 {[%clk 0:02:55]} 17. Bf1 {[%clk 0:01:15]}  N4e5 {[%clk 0:02:43]} 18. Be2 {[%clk 0:01:08]}  Bh3 {[%clk 0:02:12]} 19. Rc1 {[%clk 0:00:53]}  Qb6 {[%clk 0:02:06]} 20. Na4 {[%clk 0:00:48]}  Qa5 {[%clk 0:02:06]} 21. Bc3 {[%clk 0:00:20]}  c5 {[%clk 0:02:00]} 22. Bxb4 {[%clk 0:00:16]}  Qxb4 {[%clk 0:02:01]} 23. Nxc5 {[%clk 0:00:09]}  Qxd4 {[%clk 0:01:53]} 24. Qb3 {[%clk 0:00:08]}  Ng4 {[%clk 0:01:37]} 25. Qf3 {[%clk 0:00:03]}  N6e5 {[%clk 0:01:32]} 26. Qf4 {[%clk 0:00:04]}  Qd2 {[%clk 0:01:32]} 27. Qf5 {[%clk 0:00:02]}  g6 {[%clk 0:01:29]} 28. Qf4 {[%clk 0:00:02]}  b6 {[%clk 0:01:19]} 29. Nb7 {[%clk 0:00:02]}  Rd7 {[%clk 0:01:20]} 0-1


[Site "https://www.chess.com"]

[Event "Titled Tuesday Blitz April 05 Late 2022"]
[White "Levin, Anthony"]
[Black "Romero Ruscalleda, Josep"]
[WhiteFideId "30940680"]
[BlackFideId "2231859"]
[WhiteElo "2054"]
[BlackElo "2291"]
[Result "0-1"]
[Round "09"]
[TimeControl "180+1"]
[Date "2022.04.06"]
[WhiteClock "0:02:18"]
[BlackClock "0:02:40"]

1. d4 {[%clk 0:02:59]}  g6 {[%clk 0:02:57]} 2. e4 {[%clk 0:02:59]}  Bg7 {[%clk 0:02:58]} 3. Nc3 {[%clk 0:02:58]}  d6 {[%clk 0:02:58]} 4. Be3 {[%clk 0:02:59]}  a6 {[%clk 0:02:58]} 5. Qd2 {[%clk 0:02:59]}  b5 {[%clk 0:02:58]} 6. h4 {[%clk 0:02:55]}  h5 {[%clk 0:02:58]} 7. Nf3 {[%clk 0:02:45]}  Nd7 {[%clk 0:02:52]} 8. Ng5 {[%clk 0:02:45]}  Bb7 {[%clk 0:02:49]} 9. Bd3 {[%clk 0:02:44]}  Rc8 {[%clk 0:02:48]} 10. O-O-O {[%clk 0:02:40]}  c5 {[%clk 0:02:47]} 11. dxc5 {[%clk 0:02:36]}  Nxc5 {[%clk 0:02:46]} 12. f4 {[%clk 0:02:21]}  b4 {[%clk 0:02:44]} 13. Nd5 {[%clk 0:02:19]}  b3 {[%clk 0:02:41]} 14. axb3 {[%clk 0:02:18]}  Nxb3+ {[%clk 0:02:40]} 0-1


[Site "https://www.chess.com"]

[Event "Titled Tuesday Blitz April 05 Late 2022"]
[White "Mekhitarian, Krikor Sevag"]
[Black "Villegas, Pierre"]
[WhiteFideId "2107660"]
[BlackFideId "654183"]
[WhiteElo "2598"]
[BlackElo "2386"]
[Result "1-0"]
[Round "09"]
[TimeControl "180+1"]
[Date "2022.04.05"]
[WhiteClock "0:00:14"]
[BlackClock "0:00:01"]

1. Nf3 {[%clk 0:03:00]}  d5 {[%clk 0:02:59]} 2. c4 {[%clk 0:03:00]}  e6 {[%clk 0:02:59]} 3. e3 {[%clk 0:02:59]}  Nf6 {[%clk 0:02:58]} 4. Nc3 {[%clk 0:02:59]}  a6 {[%clk 0:02:56]} 5. b3 {[%clk 0:02:58]}  Be7 {[%clk 0:02:54]} 6. Bb2 {[%clk 0:02:55]}  O-O {[%clk 0:02:54]} 7. Rc1 {[%clk 0:02:51]}  dxc4 {[%clk 0:02:52]} 8. bxc4 {[%clk 0:02:51]}  c5 {[%clk 0:02:52]} 9. g3 {[%clk 0:02:51]}  b6 {[%clk 0:02:49]} 10. Bg2 {[%clk 0:02:50]}  Bb7 {[%clk 0:02:48]} 11. O-O {[%clk 0:02:51]}  Qc7 {[%clk 0:02:46]} 12. Qe2 {[%clk 0:02:51]}  Nc6 {[%clk 0:02:44]} 13. d3 {[%clk 0:02:51]}  Rfd8 {[%clk 0:02:44]} 14. Ne1 {[%clk 0:02:51]}  Na5 {[%clk 0:02:31]} 15. Bxb7 {[%clk 0:02:12]}  Qxb7 {[%clk 0:02:24]} 16. a4 {[%clk 0:02:13]}  Nc6 {[%clk 0:02:20]} 17. f4 {[%clk 0:02:12]}  Nb4 {[%clk 0:02:04]} 18. Rd1 {[%clk 0:02:13]}  Qc6 {[%clk 0:01:53]} 19. Nf3 {[%clk 0:02:06]}  Nd7 {[%clk 0:01:53]} 20. g4 {[%clk 0:02:06]}  Bf6 {[%clk 0:01:35]} 21. g5 {[%clk 0:01:54]}  Bxc3 {[%clk 0:01:32]} 22. Bxc3 {[%clk 0:01:55]}  Qxa4 {[%clk 0:01:33]} 23. h4 {[%clk 0:01:52]}  Nf8 {[%clk 0:01:26]} 24. Rd2 {[%clk 0:01:34]}  Qb3 {[%clk 0:01:11]} 25. Rc1 {[%clk 0:01:32]}  Qa4 {[%clk 0:01:04]} 26. h5 {[%clk 0:01:32]}  b5 {[%clk 0:00:49]} 27. h6 {[%clk 0:01:29]}  bxc4 {[%clk 0:00:39]} 28. dxc4 {[%clk 0:01:29]}  Rxd2 {[%clk 0:00:36]} 29. Qxd2 {[%clk 0:01:30]}  gxh6 {[%clk 0:00:17]} 30. Ne5 {[%clk 0:00:56]}  Ng6 {[%clk 0:00:13]} 31. Ng4 {[%clk 0:00:42]}  Qc6 {[%clk 0:00:07]} 32. Rd1 {[%clk 0:00:32]}  Kf8 {[%clk 0:00:02]} 33. Nxh6 {[%clk 0:00:20]}  a5 {[%clk 0:00:01]} 34. Qd7 {[%clk 0:00:14]} 1-0


[Site "https://www.chess.com"]

[Event "Titled Tuesday Blitz April 05 Late 2022"]
[White "Melikhov, Evgeny V."]
[Black "Ambartsumova, Karina"]
[WhiteFideId "4122046"]
[BlackFideId "4166299"]
[WhiteElo "2359"]
[BlackElo "2579"]
[Result "1/2-1/2"]
[Round "09"]
[TimeControl "180+1"]
[Date "2022.04.06"]
[WhiteClock "0:00:19"]
[BlackClock "0:00:05"]

1. d4 {[%clk 0:02:56]}  Nf6 {[%clk 0:02:59]} 2. c4 {[%clk 0:02:55]}  e6 {[%clk 0:02:59]} 3. Nc3 {[%clk 0:02:55]}  d5 {[%clk 0:02:59]} 4. cxd5 {[%clk 0:02:55]}  exd5 {[%clk 0:03:00]} 5. Bg5 {[%clk 0:02:55]}  Be7 {[%clk 0:03:00]} 6. e3 {[%clk 0:02:55]}  c6 {[%clk 0:03:01]} 7. Bd3 {[%clk 0:02:54]}  Nbd7 {[%clk 0:03:00]} 8. Qc2 {[%clk 0:02:54]}  h6 {[%clk 0:03:01]} 9. Bh4 {[%clk 0:02:54]}  Nh5 {[%clk 0:03:01]} 10. Bxe7 {[%clk 0:02:52]}  Qxe7 {[%clk 0:03:02]} 11. Nge2 {[%clk 0:02:52]}  Nb6 {[%clk 0:03:01]} 12. O-O-O {[%clk 0:02:49]}  Bd7 {[%clk 0:03:01]} 13. Kb1 {[%clk 0:02:48]}  O-O-O {[%clk 0:03:01]} 14. Rc1 {[%clk 0:02:48]}  Kb8 {[%clk 0:03:01]} 15. Na4 {[%clk 0:02:41]}  Nxa4 {[%clk 0:02:59]} 16. Qxa4 {[%clk 0:02:40]}  Rhe8 {[%clk 0:02:43]} 17. Rc3 {[%clk 0:02:38]}  c5 {[%clk 0:02:34]} 18. Qa5 {[%clk 0:02:26]}  c4 {[%clk 0:02:29]} 19. Ra3 {[%clk 0:02:09]}  a6 {[%clk 0:02:04]} 20. Bxc4 {[%clk 0:01:47]}  dxc4 {[%clk 0:01:54]} 21. Qxh5 {[%clk 0:01:46]}  Qe4+ {[%clk 0:01:47]} 22. Ka1 {[%clk 0:01:45]}  Qxg2 {[%clk 0:01:47]} 23. Ng3 {[%clk 0:01:35]}  Qxf2 {[%clk 0:01:42]} 24. Rc1 {[%clk 0:01:30]}  Rxe3 {[%clk 0:01:36]} 25. Rxe3 {[%clk 0:01:25]}  Qxe3 {[%clk 0:01:37]} 26. Qe5+ {[%clk 0:01:17]}  Qxe5 {[%clk 0:01:37]} 27. dxe5 {[%clk 0:01:18]}  Be6 {[%clk 0:01:37]} 28. Nh5 {[%clk 0:01:16]}  g6 {[%clk 0:01:30]} 29. Nf4 {[%clk 0:01:16]}  Rd4 {[%clk 0:01:24]} 30. Nxe6 {[%clk 0:01:15]}  fxe6 {[%clk 0:01:25]} 31. Kb1 {[%clk 0:01:15]}  Kc7 {[%clk 0:01:03]} 32. Rf1 {[%clk 0:01:15]}  Kc6 {[%clk 0:01:02]} 33. Rf6 {[%clk 0:01:13]}  Kd5 {[%clk 0:01:02]} 34. Rxg6 {[%clk 0:01:13]}  Rh4 {[%clk 0:01:02]} 35. Rg7 {[%clk 0:01:10]}  b5 {[%clk 0:01:00]} 36. Ra7 {[%clk 0:01:10]}  Rxh2 {[%clk 0:00:59]} 37. Rxa6 {[%clk 0:01:10]}  h5 {[%clk 0:00:59]} 38. Rb6 {[%clk 0:01:05]}  Kxe5 {[%clk 0:00:56]} 39. Rxb5+ {[%clk 0:01:05]}  Kd4 {[%clk 0:00:56]} 40. a4 {[%clk 0:01:02]}  e5 {[%clk 0:00:31]} 41. a5 {[%clk 0:01:02]}  Rg2 {[%clk 0:00:20]} 42. a6 {[%clk 0:01:01]}  Rg8 {[%clk 0:00:20]} 43. a7 {[%clk 0:00:59]}  Ra8 {[%clk 0:00:20]} 44. Rb7 {[%clk 0:00:59]}  h4 {[%clk 0:00:16]} 45. Rh7 {[%clk 0:00:57]}  e4 {[%clk 0:00:15]} 46. Kc2 {[%clk 0:00:57]}  h3 {[%clk 0:00:13]} 47. Rd7+ {[%clk 0:00:39]}  Ke3 {[%clk 0:00:13]} 48. Kc3 {[%clk 0:00:39]}  Rh8 {[%clk 0:00:10]} 49. Rd1 {[%clk 0:00:35]}  h2 {[%clk 0:00:10]} 50. Rh1 {[%clk 0:00:35]}  Ra8 {[%clk 0:00:09]} 51. Rxh2 {[%clk 0:00:35]}  Rxa7 {[%clk 0:00:09]} 52. Kxc4 {[%clk 0:00:33]}  Rc7+ {[%clk 0:00:09]} 53. Kd5 {[%clk 0:00:30]}  Kd3 {[%clk 0:00:09]} 54. b4 {[%clk 0:00:28]}  e3 {[%clk 0:00:09]} 55. b5 {[%clk 0:00:28]}  Rc2 {[%clk 0:00:07]} 56. Rh3 {[%clk 0:00:25]}  Rb2 {[%clk 0:00:06]} 57. Kc6 {[%clk 0:00:25]}  Ke4 {[%clk 0:00:04]} 58. b6 {[%clk 0:00:22]}  e2 {[%clk 0:00:05]} 59. Rh1 {[%clk 0:00:22]}  Kd3 {[%clk 0:00:05]} 60. b7 {[%clk 0:00:20]}  Kd2 {[%clk 0:00:04]} 61. Kc7 {[%clk 0:00:20]}  e1=Q {[%clk 0:00:04]} 62. Rxe1 {[%clk 0:00:19]}  Kxe1 {[%clk 0:00:05]} 63. b8=Q {[%clk 0:00:19]}  Rxb8 {[%clk 0:00:05]} 64. Kxb8 {[%clk 0:00:19]} 1/2-1/2


[Site "https://www.chess.com"]